fUSD/lending_fUSD_20250716
["ID","MTS","AMOUNT","RATE_DAILY","PERIOD"]
[372408398,1752633048602,-402.37133268,0.00021917,2]
[372408399,1752633048611,-835.244334,0.00021917,2]
[372408400,1752633048621,-2820.52,0.00021917,2]
[372408401,1752633048630,-491.01,0.00021917,2]
[372408402,1752633048639,-460.0,0.00021917,2]
[372408403,1752633048649,-1876.76,0.00021917,2]
[372408404,1752633048659,-835.244334,0.00021917,2]
[372408405,1752633048668,-955.92,0.00021917,2]
[372408406,1752633048679,-1564.59,0.00021917,2]
[372408407,1752633048689,-835.244334,0.00021917,2]
[372408408,1752633048698,-641.65,0.00021917,2]
[372408409,1752633048708,-835.244334,0.00021917,2]
[372408410,1752633048718,-460.0,0.00021917,2]
[372408411,1752633048727,-460.0,0.00021917,2]
[372408412,1752633048739,-1180.96,0.00021917,2]
[372408413,1752633048748,-835.244334,0.00021917,2]
[372408414,1752633048758,-835.244334,0.00021917,2]
[372408415,1752633048768,-460.0,0.00021917,2]
[372408416,1752633048777,-460.0,0.00021917,2]
[372408417,1752633048787,-835.244334,0.00021917,2]
[372408418,1752633048797,-835.244334,0.00021917,2]
[372408419,1752633048806,-460.0,0.00021917,2]
[372408420,1752633048816,-835.244334,0.00021917,2]
[372408421,1752633048825,-835.244334,0.00021917,2]
[372408422,1752633048834,-460.0,0.00021917,2]
[372408423,1752633048844,-835.244334,0.00021917,2]
[372408424,1752633048853,-460.0,0.00021917,2]
[372408425,1752633048863,-835.244334,0.00021917,2]
[372408426,1752633048872,-835.244334,0.00021917,2]
[372408427,1752633048881,-2761.51,0.00021917,2]
[372408428,1752633048891,-503.97,0.00021917,2]
[372408429,1752633048900,-460.0,0.00021917,2]
[372408430,1752633048909,-696.76,0.00021917,2]
[372408431,1752633048920,-460.0,0.00021917,2]
[372408432,1752633048929,-460.0,0.00021917,2]
[372408433,1752633048939,-835.92,0.00021917,2]
[372408434,1752633048948,-2482.13,0.00021917,2]
[372408435,1752633048959,-461.45744373,0.00021917,2]
[372408436,1752633048968,-460.0,0.00021917,2]
[372408437,1752633048979,-460.0,0.00021917,2]
[372408438,1752633048990,-460.0,0.00021917,2]
[372408439,1752633049000,-460.0,0.00021917,2]
[372408440,1752633049010,-460.0,0.00021917,2]
[372408441,1752633049020,-460.0,0.00021917,2]
[372408442,1752633049030,-460.0,0.00021917,2]
[372408443,1752633049041,-168.64369747,0.00021917,2]
[372408444,1752633049051,-531.46,0.00021917,2]
[372408445,1752633049060,-460.0,0.00021917,2]
[372408446,1752633049070,-1382.38,0.00021917,2]
[372408447,1752633049079,-460.0,0.00021917,2]
[372408448,1752633049089,-489.44,0.00021917,2]
[372408449,1752633049099,-3384.2,0.00021917,2]
[372408450,1752633049108,-151.0,0.00021917,2]
[372408451,1752633049118,-460.0,0.00021917,2]
[372408452,1752633049128,-460.0,0.00021917,2]
[372408453,1752633049138,-151.0,0.00021917,2]
[372408454,1752633049147,-151.0,0.00021917,2]
[372408455,1752633049157,-151.0,0.00021917,2]
[372408456,1752633049167,-464.11,0.00021917,2]
[372408457,1752633049176,-286.624337,0.00021917,2]
[372408458,1752633049186,-2081.02,0.00021917,2]
[372408459,1752633049195,-460.0,0.00021917,2]
[372408460,1752633049205,-460.0,0.00021917,2]
[372408461,1752633049215,-460.0,0.00021917,2]
[372408462,1752633049224,-460.0,0.00021917,2]
[372408463,1752633049233,-460.0,0.00021917,2]
[372408464,1752633049245,-641.76,0.00021917,5]
[372408465,1752633049255,-460.0,0.00021917,2]
[372408466,1752633049265,-460.0,0.00021917,2]
[372408467,1752633049275,-463.88389084,0.00021917,2]
[372408468,1752633049285,-460.0,0.00021917,2]
[372408469,1752633049295,-531.95,0.00021917,2]
[372408470,1752633049304,-460.0,0.00021917,2]
[372408471,1752633049314,-460.0,0.00021917,2]
[372408472,1752633049323,-460.0,0.00021917,2]
[372408473,1752633049333,-151.0,0.00021917,2]
[372408474,1752633049343,-460.0,0.00021917,2]
[372408475,1752633049354,-160.312001,0.00021917,2]
[372408476,1752633049363,-460.0,0.00021917,2]
[372408477,1752633049373,-460.0,0.00021917,2]
[372408478,1752633049383,-3533.81,0.00021917,2]
[372408479,1752633049395,-460.0,0.00021917,2]
[372408480,1752633049405,-460.0,0.00021917,2]
[372408481,1752633049415,-460.0,0.00021917,2]
[372408482,1752633049425,-460.0,0.00021917,2]
[372408483,1752633049435,-628.12,0.00021917,2]
[372408484,1752633049446,-957.34,0.00021917,2]
[372408485,1752633049456,-3697.76,0.00021917,2]
[372408486,1752633049467,-460.0,0.00021917,2]
[372408487,1752633049477,-460.0,0.00021917,2]
[372408488,1752633049487,-496.5,0.00021917,2]
[372408489,1752633049497,-460.0,0.00021917,2]
[372408490,1752633049507,-1646.34,0.00021917,2]
[372408491,1752633049516,-460.0,0.00021917,2]
[372408492,1752633049525,-833.55,0.00021917,2]
[372408493,1752633049536,-705.0,0.00021917,2]
[372408494,1752633049547,-460.0,0.00021917,2]
[372408495,1752633049558,-460.0,0.00021917,2]
[372408496,1752633049572,-968.65,0.00021917,2]
[372408497,1752633049582,-2460.35,0.00021917,2]
[372408498,1752633049591,-460.0,0.00021917,2]
[372408499,1752633049601,-460.0,0.00021917,2]
[372408500,1752633049611,-674.7,0.00021917,2]
[372408501,1752633049622,-460.0,0.00021917,2]
[372408502,1752633049633,-1449.58,0.00021917,2]
[372408503,1752633049642,-2500.84,0.00021917,2]
[372408504,1752633049652,-462.93034171,0.00021917,2]
[372408505,1752633049662,-526.3,0.00021917,2]
[372408506,1752633049671,-469.95,0.00021917,2]
[372408507,1752633049682,-1041.82,0.00021917,2]
[372408508,1752633049692,-460.0,0.00021917,2]
[372408509,1752633049704,-460.0,0.00021917,2]
[372408510,1752633049713,-692.09,0.00021917,2]
[372408511,1752633049724,-460.0,0.00021917,2]
[372408512,1752633049912,-460.0,0.00021917,2]
[372408513,1752633049922,-1040.21,0.00021917,2]
[372408514,1752633049932,-460.0,0.00021917,2]
[372408515,1752633049941,-471.56,0.00021917,2]
[372408516,1752633049950,-500.0,0.00021917,2]
[372408517,1752633049960,-500.0,0.00021917,2]
[372408518,1752633049972,-500.0,0.00021917,2]
[372408519,1752633049982,-500.0,0.00021917,2]
[372408520,1752633049993,-500.0,0.00021917,2]
[372408521,1752633050002,-151.0,0.00021917,2]
[372408522,1752633050012,-832.29,0.00021917,2]
[372408523,1752633050022,-500.0,0.00021917,2]
[372408524,1752633050032,-500.0,0.00021917,2]
[372408525,1752633050041,-460.0,0.00021917,2]
[372408526,1752633050051,-2486.16,0.00021917,2]
[372408527,1752633050062,-151.0,0.00021917,2]
[372408528,1752633050071,-500.0,0.00021917,2]
[372408529,1752633050081,-151.0,0.00021917,2]
[372408530,1752633050091,-460.0,0.00021917,2]
[372408531,1752633050100,-174.05568958,0.00021917,2]
[372408532,1752633050110,-460.0,0.00021917,2]
[372408533,1752633050120,-460.0,0.00021917,2]
[372408534,1752633050129,-2772.26,0.00021917,2]
[372408535,1752633050139,-460.0,0.00021917,2]
[372408536,1752633050148,-151.0,0.00021917,2]
[372408537,1752633050158,-151.0,0.00021917,2]
[372408538,1752633050168,-151.0,0.00021917,2]
[372408539,1752633050178,-3509.44,0.00021917,2]
[372408540,1752633050189,-1046.16,0.00021917,2]
[372408541,1752633050199,-151.0,0.00021917,2]
[372408542,1752633050209,-151.0,0.00021917,2]
[372408543,1752633050219,-460.0,0.00021917,2]
[372408544,1752633050230,-151.0,0.00021917,2]
[372408545,1752633050242,-1995.12,0.00021917,2]
[372408546,1752633050251,-460.0,0.00021917,2]
[372408547,1752633050261,-1140.39,0.00021917,2]
[372408548,1752633050272,-500.0,0.00021917,2]
[372408549,1752633050282,-500.0,0.00021917,2]
[372408550,1752633050293,-500.0,0.00021917,2]
[372408551,1752633050304,-1414.5,0.00021917,2]
[372408552,1752633050314,-225.70572082,0.00021917,2]
[372408553,1752633050325,-715.88,0.00021917,2]
[372408554,1752633050334,-460.0,0.00021917,2]
[372408555,1752633050344,-460.0,0.00021917,2]
[372408556,1752633050356,-460.0,0.00021917,2]
[372408557,1752633050366,-460.0,0.00021917,2]
[372408558,1752633050376,-462.54330658,0.00021917,2]
[372408559,1752633050388,-1381.65,0.00021917,2]
[372408560,1752633050400,-2979.97,0.00021917,2]
[372408561,1752633050410,-545.72567563,0.00021917,2]
[372408562,1752633050419,-4107.08,0.00021917,2]
[372408563,1752633050428,-1831.99,0.00021917,2]
[372408564,1752633050439,-2105.38,0.00021917,2]
[372408565,1752633050448,-905.26,0.00021917,2]
[372408566,1752633050457,-460.0,0.00021917,2]
[372408567,1752633050467,-151.0,0.00021917,2]
[372408568,1752633050685,-460.0,0.00021917,2]
[372408569,1752633050695,-725.97,0.00021917,2]
[372408570,1752633050706,-151.0,0.00021917,2]
[372408571,1752633050716,-151.0,0.00021917,2]
[372408572,1752633050727,-151.0,0.00021917,2]
[372408573,1752633050737,-770.22,0.00021917,2]
[372408574,1752633050750,-151.0,0.00021917,2]
[372408575,1752633050760,-460.0,0.00021917,2]
[372408576,1752633050770,-235.346281,0.00021917,2]
[372408577,1752633050782,-461.14666216,0.00021917,2]
[372408578,1752633050792,-460.0,0.00021917,2]
[372408579,1752633050802,-788.72,0.00021917,2]
[372408580,1752633050811,-3056.8,0.00021917,2]
[372408581,1752633050821,-460.0,0.00021917,2]
[372408582,1752633050830,-1799.33,0.00021917,2]
[372408583,1752633050839,-151.0,0.00021917,2]
[372408584,1752633050850,-151.0,0.00021917,2]
[372408585,1752633050861,-151.0,0.00021917,2]
[372408586,1752633050871,-460.0,0.00021917,2]
[372408587,1752633050882,-460.0,0.00021917,2]
[372408588,1752633050892,-885.7,0.00021917,2]
[372408589,1752633050902,-460.0,0.00021917,2]
[372408590,1752633050913,-876.22,0.00021917,2]
[372408591,1752633050923,-1817.87,0.00021917,2]
[372408592,1752633050933,-460.0,0.00021917,2]
[372408593,1752633050945,-460.0,0.00021917,2]
[372408594,1752633050955,-151.0,0.00021917,2]
[372408595,1752633050965,-151.0,0.00021917,2]
[372408596,1752633050975,-151.0,0.00021917,2]
[372408597,1752633050985,-460.0,0.00021917,2]
[372408598,1752633051000,-151.0,0.00021917,2]
[372408599,1752633051011,-1680.33,0.00021917,2]
[372408600,1752633051020,-460.0,0.00021917,2]
[372408601,1752633051030,-526.81281312,0.00021917,2]
[372408602,1752633051040,-1296.66,0.00021917,2]
[372408603,1752633051050,-460.0,0.00021917,2]
[372408604,1752633051059,-460.0,0.00021917,2]
[372408605,1752633051069,-154.717263,0.00021917,2]
[372408606,1752633051079,-154.717263,0.00021917,2]
[372408607,1752633051089,-154.717263,0.00021917,2]
[372408608,1752633051099,-1545.32,0.00021917,2]
[372408609,1752633051108,-154.717263,0.00021917,2]
[372408610,1752633051119,-273.37854993,0.00021917,2]
[372408611,1752633051129,-154.717263,0.00021917,2]
[372408612,1752633051139,-154.717263,0.00021917,2]
[372408613,1752633051149,-154.717263,0.00021917,2]
[372408614,1752633051159,-1428.51,0.00021917,2]
[372408615,1752633051169,-1470.1,0.00021917,2]
[372408616,1752633051179,-2513.72,0.00021917,2]
[372408617,1752633051189,-1152.74,0.00021917,2]
[372408618,1752633051199,-639.86,0.00021917,2]
[372408619,1752633051209,-461.41986727,0.00021917,2]
[372408620,1752633051220,-631.34,0.00021917,2]
[372408621,1752633051230,-1257.95,0.00021917,2]
[372408622,1752633051243,-460.0,0.00021917,2]
[372408623,1752633051253,-154.717263,0.00021917,2]
[372408624,1752633051262,-154.717263,0.00021917,2]
[372408625,1752633051272,-460.0,0.00021917,2]
[372408626,1752633051284,-154.717263,0.00021917,2]
[372408627,1752633051295,-154.717263,0.00021917,2]
[372408628,1752633051304,-3249.22,0.00021917,2]
[372408629,1752633051314,-154.717263,0.00021917,2]
[372408630,1752633051323,-460.0,0.00021917,2]
[372408631,1752633051332,-154.717263,0.00021917,2]
[372408632,1752633051342,-154.717263,0.00021917,2]
[372408633,1752633051351,-460.0,0.00021917,2]
[372408634,1752633051361,-460.0,0.00021917,2]
[372408635,1752633051371,-1226.12,0.00021917,2]
[372408636,1752633051380,-587.13,0.00021917,2]
[372408637,1752633051392,-151.0,0.00021917,2]
[372408638,1752633051404,-151.0,0.00021917,2]
[372408639,1752633051414,-151.0,0.00021917,2]
[372408640,1752633051424,-151.0,0.00021917,2]
[372408641,1752633051435,-514.97047773,0.00021917,2]
[372408642,1752633051444,-481.52,0.00021917,2]
[372408643,1752633051455,-151.0,0.00021917,2]
[372408644,1752633051468,-460.0,0.00021917,2]
[372408645,1752633051479,-151.0,0.00021917,2]
[372408646,1752633051489,-151.0,0.00021917,2]
[372408647,1752633051498,-151.0,0.00021917,2]
[372408648,1752633051507,-151.0,0.00021917,2]
[372408649,1752633051517,-460.0,0.00021917,2]
[372408650,1752633051526,-151.0,0.00021917,2]
[372408651,1752633051536,-460.0,0.00021917,2]
[372408652,1752633051545,-151.0,0.00021917,2]
[372408653,1752633051557,-151.0,0.00021917,2]
[372408654,1752633051567,-2916.77,0.00021917,2]
[372408655,1752633051577,-500.0,0.00021917,2]
[372408656,1752633051586,-2485.84,0.00021917,2]
[372408657,1752633051596,-151.0,0.00021917,2]
[372408658,1752633051605,-500.0,0.00021917,2]
[372408659,1752633051615,-464.83962361,0.00021917,2]
[372408660,1752633051625,-500.0,0.00021917,2]
[372408661,1752633051634,-4031.8,0.00021917,2]
[372408662,1752633051644,-500.0,0.00021917,2]
[372408663,1752633051653,-500.0,0.00021917,2]
[372408664,1752633051663,-500.0,0.00021917,2]
[372408665,1752633051672,-500.0,0.00021917,2]
[372408666,1752633051682,-151.0,0.00021917,2]
[372408667,1752633051692,-500.0,0.00021917,2]
[372408668,1752633051701,-460.0,0.00021917,2]
[372408669,1752633051711,-151.0,0.00021917,2]
[372408670,1752633051720,-500.0,0.00021917,2]
[372408671,1752633051730,-151.0,0.00021917,2]
[372408672,1752633051740,-459.9517779,0.00021917,2]
[372408673,1752633051749,-500.0,0.00021917,2]
[372408674,1752633051759,-500.0,0.00021917,2]
[372408675,1752633051768,-154.148355,0.00021917,2]
[372408676,1752633051777,-1102.39,0.00021917,2]
[372408677,1752633051787,-938.31,0.00021917,2]
[372408678,1752633051796,-460.0,0.00021917,2]
[372408679,1752633051806,-638.03,0.00021917,2]
[372408680,1752633051816,-2130.56,0.00021917,2]
[372408681,1752633051826,-525.03444349,0.00021917,2]
[372408682,1752633051835,-460.0,0.00021917,2]
[372408683,1752633051845,-627.48,0.00021917,2]
[372408684,1752633051855,-461.32673704,0.00021917,2]
[372408685,1752633051866,-460.0,0.00021917,2]
[372408686,1752633051886,-460.0,0.00021917,2]
[372408687,1752633051907,-1743.72,0.00021917,2]
[372408688,1752633051917,-553.49,0.00021917,2]
[372408689,1752633051927,-460.0,0.00021917,2]
[372408690,1752633051936,-231.507309,0.00021917,2]
[372408691,1752633051946,-1792.96,0.00021917,2]
[372408692,1752633051955,-462.81,0.00021917,2]
[372408693,1752633051964,-460.0,0.00021917,2]
[372408694,1752633051973,-848.43,0.00021917,2]
[372408695,1752633051983,-231.507309,0.00021917,2]
[372408696,1752633051994,-460.0,0.00021917,2]
[372408697,1752633052005,-231.507309,0.00021917,2]
[372408698,1752633052014,-231.507309,0.00021917,2]
[372408699,1752633052023,-231.507309,0.00021917,2]
[372408700,1752633052034,-301.717814,0.00021917,2]
[372408701,1752633052043,-231.507309,0.00021917,2]
[372408702,1752633052053,-1497.63,0.00021917,2]
[372408703,1752633052062,-460.0,0.00021917,2]
[372408704,1752633052071,-460.0,0.00021917,2]
[372408705,1752633052081,-460.0,0.00021917,2]
[372408706,1752633052091,-500.0,0.00021917,2]
[372408707,1752633052100,-231.507309,0.00021917,2]
[372408708,1752633052110,-500.0,0.00021917,2]
[372408709,1752633052119,-460.0,0.00021917,2]
[372408710,1752633052128,-423.86,0.00021917,2]
[372408711,1752633052137,-231.507309,0.00021917,2]
[372408712,1752633052146,-231.507309,0.00021917,2]
[372408713,1752633052155,-460.0,0.00021917,2]
[372408714,1752633052164,-231.507309,0.00021917,2]
[372408715,1752633052173,-231.507309,0.00021917,2]
[372408716,1752633052183,-631.36,0.00021917,2]
[372408717,1752633052192,-231.507309,0.00021917,2]
[372408718,1752633052202,-151.0,0.00021917,2]
[372408719,1752633052211,-534.5,0.00021917,2]
[372408720,1752633052220,-575.83334109,0.00021917,2]
[372408721,1752633052230,-151.0,0.00021917,2]
[372408722,1752633052240,-151.0,0.00021917,2]
[372408723,1752633052249,-460.0,0.00021917,2]
[372408724,1752633052259,-1936.62,0.00021917,2]
[372408725,1752633052268,-460.0,0.00021917,2]
[372408726,1752633052277,-766.03,0.00021917,2]
[372408727,1752633052287,-151.0,0.00021917,2]
[372408728,1752633052652,-460.0,0.00021917,2]
[372408729,1752633052665,-460.0,0.00021917,2]
[372408730,1752633052675,-151.0,0.00021917,2]
[372408731,1752633052684,-151.0,0.00021917,2]
[372408732,1752633052693,-1180.55,0.00021917,2]
[372408733,1752633052703,-151.0,0.00021917,2]
[372408734,1752633052712,-151.0,0.00021917,2]
[372408735,1752633052721,-466.41348701,0.00021917,2]
[372408736,1752633052732,-151.0,0.00021917,2]
[372408737,1752633052743,-151.0,0.00021917,2]
[372408738,1752633052752,-1159.7,0.00021917,2]
[372408739,1752633052762,-151.0,0.00021917,2]
[372408740,1752633052771,-151.0,0.00021917,2]
[372408741,1752633052781,-202.523185,0.00021917,2]
[372408742,1752633052790,-3093.13,0.00021917,2]
[372408743,1752633052800,-460.0,0.00021917,2]
[372408744,1752633052809,-460.0,0.00021917,2]
[372408745,1752633052819,-2990.62,0.00021917,2]
[372408746,1752633052828,-460.0,0.00021917,2]
[372408747,1752633052837,-3456.19,0.00021917,2]
[372408748,1752633052847,-460.0,0.00021917,2]
[372408749,1752633052856,-460.0,0.00021917,2]
[372408750,1752633052865,-460.0,0.00021917,2]
[372408751,1752633052875,-975.4,0.00021917,2]
[372408752,1752633052885,-1920.32,0.00021917,2]
[372408753,1752633052894,-800.05,0.00021917,2]
[372408754,1752633052903,-1284.42,0.00021917,2]
[372408755,1752633052912,-553.1,0.00021917,2]
[372408756,1752633052922,-1265.64,0.00021917,2]
[372408757,1752633052933,-3325.21,0.00021917,2]
[372408758,1752633052943,-504.6667808,0.00021917,2]
[372408759,1752633052953,-504.28,0.00021917,2]
[372408760,1752633052964,-460.0,0.00021917,2]
[372408761,1752633052977,-808.87,0.00021917,2]
[372408762,1752633052987,-1782.82,0.00021917,2]
[372408763,1752633052998,-460.0,0.00021917,2]
[372408764,1752633053007,-151.0,0.00021917,2]
[372408765,1752633053017,-151.0,0.00021917,2]
[372408766,1752633053028,-996.77,0.00021917,2]
[372408767,1752633053039,-151.0,0.00021917,2]
[372408768,1752633053049,-461.89769566,0.00021917,2]
[372408769,1752633053059,-151.0,0.00021917,2]
[372408770,1752633053070,-460.0,0.00021917,2]
[372408771,1752633053080,-164.41583,0.00021917,2]
[372408772,1752633053090,-544.58,0.00021917,2]
[372408773,1752633053101,-460.0,0.00021917,2]
[372408774,1752633053110,-1101.06,0.00021917,2]
[372408775,1752633053120,-460.0,0.00021917,2]
[372408776,1752633053130,-1020.25,0.00021917,2]
[372408777,1752633053139,-460.0,0.00021917,2]
[372408778,1752633053152,-460.0,0.00021917,2]
[372408779,1752633053163,-151.0,0.00021917,2]
[372408780,1752633053175,-460.0,0.00021917,2]
[372408781,1752633053184,-460.0,0.00021917,2]
[372408782,1752633053195,-151.0,0.00021917,2]
[372408783,1752633053205,-151.0,0.00021917,2]
[372408784,1752633053215,-151.0,0.00021917,2]
[372408785,1752633053226,-1446.85,0.00021917,2]
[372408786,1752633053236,-151.0,0.00021917,2]
[372408787,1752633053247,-151.0,0.00021917,2]
[372408788,1752633053256,-151.0,0.00021917,2]
[372408789,1752633053266,-1270.06,0.00021917,2]
[372408790,1752633053275,-460.0,0.00021917,2]
[372408791,1752633053285,-151.0,0.00021917,2]
[372408792,1752633053294,-151.0,0.00021917,2]
[372408793,1752633053304,-151.0,0.00021917,2]
[372408794,1752633053313,-151.0,0.00021917,2]
[372408795,1752633053323,-151.0,0.00021917,2]
[372408796,1752633053332,-185.365296,0.00021917,2]
[372408797,1752633053341,-460.0,0.00021917,2]
[372408798,1752633053350,-200.0,0.00021917,2]
[372408799,1752633053360,-460.0,0.00021917,2]
[372408800,1752633053369,-203.969566,0.00021917,2]
[372408801,1752633053378,-593.7,0.00021917,2]
[372408802,1752633053388,-2439.66,0.00021917,2]
[372408803,1752633053400,-460.0,0.00021917,2]
[372408804,1752633053409,-1480.18,0.00021917,2]
[372408805,1752633053419,-460.0,0.00021917,2]
[372408806,1752633053429,-460.0,0.00021917,2]
[372408807,1752633053440,-3529.76,0.00021917,2]
[372408808,1752633053449,-460.0,0.00021917,2]
[372408809,1752633053458,-460.0,0.00021917,2]
[372408810,1752633053468,-544.7,0.00021917,2]
[372408811,1752633053478,-544.7,0.00021917,2]
[372408812,1752633053487,-544.7,0.00021917,2]
[372408813,1752633053497,-460.0,0.00021917,2]
[372408814,1752633053506,-544.7,0.00021917,2]
[372408815,1752633053517,-544.7,0.00021917,2]
[372408816,1752633053529,-544.7,0.00021917,2]
[372408817,1752633053538,-544.7,0.00021917,2]
[372408818,1752633053547,-544.7,0.00021917,2]
[372408819,1752633053558,-460.0,0.00021917,2]
[372408820,1752633053567,-544.7,0.00021917,2]
[372408821,1752633053576,-3224.93,0.00021917,2]
[372408822,1752633053586,-544.7,0.00021917,2]
[372408823,1752633053595,-3522.75,0.00021917,2]
[372408824,1752633053605,-544.7,0.00021917,2]
[372408825,1752633053616,-151.0,0.00021917,2]
[372408826,1752633053625,-151.0,0.00021917,2]
[372408827,1752633053636,-561.52,0.00021917,2]
[372408828,1752633053647,-151.0,0.00021917,2]
[372408829,1752633053656,-151.0,0.00021917,2]
[372408830,1752633053666,-460.0,0.00021917,2]
[372408831,1752633053676,-151.0,0.00021917,2]
[372408832,1752633053686,-151.0,0.00021917,2]
[372408833,1752633053696,-151.0,0.00021917,2]
[372408834,1752633053705,-460.0,0.00021917,2]
[372408835,1752633053715,-2046.88,0.00021917,2]
[372408836,1752633053724,-2414.88,0.00021917,2]
[372408837,1752633053734,-1229.0,0.00021917,2]
[372408838,1752633053743,-460.0,0.00021917,2]
[372408839,1752633053753,-460.0,0.00021917,2]
[372408840,1752633053763,-1660.25,0.00021917,2]
[372408841,1752633053772,-854.13,0.00021917,2]
[372408842,1752633053782,-460.0,0.00021917,2]
[372408843,1752633053791,-864.66,0.00021917,2]
[372408844,1752633053801,-465.26255826,0.00021917,2]
[372408845,1752633053810,-151.0,0.00021917,2]
[372408846,1752633053820,-4131.75,0.00021917,2]
[372408847,1752633053829,-460.0,0.00021917,2]
[372408848,1752633053838,-190.044267,0.00021917,2]
[372408849,1752633053848,-151.0,0.00021917,2]
[372408850,1752633053857,-157.681486,0.00021917,2]
[372408851,1752633053867,-460.0,0.00021917,2]
[372408852,1752633053876,-946.49,0.00021917,2]
[372408853,1752633053886,-1750.19,0.00021917,2]
[372408854,1752633053895,-2805.83,0.00021917,2]
[372408855,1752633053905,-672.96,0.00021917,2]
[372408856,1752633053914,-460.0,0.00021917,2]
[372408857,1752633053924,-928.48,0.00021917,2]
[372408858,1752633053933,-460.0,0.00021917,2]
[372408859,1752633053951,-3373.47,0.00021917,2]
[372408860,1752633053963,-2074.06,0.00021917,2]
[372408861,1752633053973,-461.27931061,0.00021917,2]
[372408862,1752633053983,-460.0,0.00021917,2]
[372408863,1752633053994,-460.0,0.00021917,2]
[372408864,1752633054003,-460.0,0.00021917,2]
[372408865,1752633054013,-637.85,0.00021917,2]
[372408866,1752633054023,-773.38,0.00021917,2]
[372408867,1752633054033,-902.66,0.00021917,2]
[372408868,1752633054042,-283.214635,0.00021917,2]
[372408869,1752633054051,-1461.99,0.00021917,2]
[372408870,1752633054061,-460.0,0.00021917,2]
[372408871,1752633054070,-738.58,0.00021917,2]
[372408872,1752633054080,-2205.24,0.00021917,2]
[372408873,1752633054089,-536.78,0.00021917,2]
[372408874,1752633054105,-460.0,0.00021917,2]
[372408875,1752633054117,-151.0,0.00021917,2]
[372408876,1752633054126,-151.0,0.00021917,2]
[372408877,1752633054136,-215.992609,0.00021917,2]
[372408878,1752633054144,-555.86,0.00021917,2]
[372408879,1752633054154,-595.56,0.00021917,2]
[372408880,1752633054163,-712.01,0.00021917,2]
[372408881,1752633054173,-460.0,0.00021917,2]
[372408882,1752633054183,-460.0,0.00021917,2]
[372408883,1752633054192,-460.0,0.00021917,2]
[372408884,1752633054202,-462.36,0.00021917,2]
[372408885,1752633054212,-460.0,0.00021917,2]
[372408886,1752633054222,-1744.45,0.00021917,2]
[372408887,1752633054231,-1024.89,0.00021917,2]
[372408888,1752633054241,-1246.84,0.00021917,2]
[372408889,1752633054250,-1113.7,0.00021917,2]
[372408890,1752633054260,-460.0,0.00021917,2]
[372408891,1752633054270,-2079.65,0.00021917,2]
[372408892,1752633054280,-460.0,0.00021917,2]
[372408893,1752633054289,-1160.79,0.00021917,2]
[372408894,1752633054299,-460.0,0.00021917,2]
[372408895,1752633054308,-460.0,0.00021917,2]
[372408896,1752633054317,-1965.34,0.00021917,2]
[372408897,1752633054326,-460.0,0.00021917,2]